fUST/lending_fUST_20250404
["ID","MTS","AMOUNT","RATE_DAILY","PERIOD"]
[357088680,1743707163200,-1000.0,0.00041095,120]
[357088681,1743707163226,-1000.0,0.00041095,120]
[357088682,1743707163257,-1000.0,0.00041095,120]
[357088683,1743707163287,-1000.0,0.00041095,120]
[357088684,1743707163315,-1000.0,0.00041095,120]
[357088685,1743707163343,-1000.0,0.00041095,120]
[357088686,1743707163369,-1000.0,0.00041095,120]
[357088687,1743707163397,-1000.0,0.00041095,120]
[357088688,1743707163424,-1000.0,0.00041095,120]
[357088689,1743707163452,-1000.0,0.00041095,120]
[357088690,1743707163479,-573.80521946,0.00041095,120]
[357088691,1743707163505,-1547.70700543,0.00041096,120]
[357088692,1743707163534,-200.0,0.00041138,120]
[357088693,1743707163562,-200.0,0.00041206,120]
[357088694,1743707163589,-200.0,0.00041269,120]
[357088695,1743707163618,-10000.0,0.00042,42]
[357088696,1743707163645,-150.0,0.00042,120]
[357088697,1743707163672,-30000.0,0.00042,120]
[357088698,1743707163699,-10363.45531392,0.00042,120]
[357088699,1743707163725,-1000.0,0.00042,90]
[357088700,1743707163751,-1000.0,0.00042,120]
[357088701,1743707163778,-35379.35222671,0.00042,30]
[357088702,1743707164694,-196.2234246,0.00012979,2]
[357088703,1743707164718,-62.8085003,0.0001336,2]
[357088704,1743707167725,-64620.64777329,0.00042,30]
[357088705,1743707167751,-100000.0,0.00042,30]
[357088706,1743707167777,-100000.0,0.00042,30]
[357088707,1743707167802,-100000.0,0.00042,30]
[357088708,1743707167828,-100000.0,0.00042,30]
[357088709,1743707167852,-100000.0,0.00042,30]
[357088710,1743707167878,-100000.0,0.00042,30]
[357088711,1743707167903,-500.0,0.00042,120]
[357088712,1743707167928,-179999.0,0.00042,30]
[357088713,1743707167953,-714091.21,0.00042,30]
[357088714,1743707167978,-4841.0,0.00042,120]
[357088715,1743707168002,-50000.0,0.00042,30]
[357088716,1743707168030,-50000.0,0.00042,30]
[357088717,1743707168055,-4004.31959912,0.00042,30]
[357088718,1743707168080,-160.10262076,0.00042122,120]
[357088719,1743707168239,-110000.0,0.0004222,30]
[357088720,1743707168269,-1249.08554525,0.00042352,120]
[357088721,1743707168297,-1631.71,0.000424,120]
[357088722,1743707168324,-1249.08554525,0.00042452,120]
[357088723,1743707168351,-1249.08554525,0.00042552,120]
[357088724,1743707168378,-1249.08554525,0.00042652,120]
[357088725,1743707168404,-1249.08554525,0.00042752,120]
[357088726,1743707168430,-1249.08554525,0.00042852,120]
[357088727,1743707168457,-200.0,0.00042939,120]
[357088728,1743707168483,-1249.08554525,0.00042952,120]
[357088729,1743707168509,-1000.0,0.00043,90]
[357088730,1743707168537,-487.03255919,0.00043,120]
[357088731,1743707168563,-1000.0,0.00043,120]
[357088732,1743707168589,-5000.0,0.00043,120]
[357088733,1743707168616,-500.0,0.00043,120]
[357088734,1743707168641,-218.2858242,0.00043,40]
[357088735,1743707168668,-7527.86,0.00043,30]
[357088736,1743707168694,-1249.08554525,0.00043052,120]
[357088737,1743707168721,-200.0,0.00043079,120]
[357088738,1743707168748,-1249.08554525,0.00043152,120]
[357088739,1743707168776,-1249.08554525,0.00043252,120]
[357088740,1743707168802,-1249.08554525,0.00043352,120]
[357088741,1743707168829,-200.0,0.00043396,120]
[357088742,1743707168854,-20000.0,0.00043423,50]
[357088743,1743707168879,-1249.08554525,0.00043452,120]
[357088744,1743707168905,-1249.08554525,0.00043552,120]
[357088745,1743707168930,-1249.08554525,0.00043652,120]
[357088746,1743707168956,-200.0,0.00043673,120]
[357088747,1743707168980,-153.0,0.00043714,30]
[357088748,1743707169006,-153.0,0.00043714,30]
[357088749,1743707169032,-1249.08554525,0.00043752,120]
[357088750,1743707169057,-1054.13430697,0.00043835,120]
[357088751,1743707169081,-188.0,0.00043835,120]
[357088752,1743707169107,-213.83120333,0.00043835,120]
[357088753,1743707169132,-1000.0,0.00043835,120]
[357088754,1743707169157,-1000.0,0.00043835,120]
[357088755,1743707169184,-1000.0,0.00043835,120]
[357088756,1743707169209,-1000.0,0.00043835,120]
[357088757,1743707169236,-1000.0,0.00043835,120]
[357088758,1743707169262,-1000.0,0.00043835,120]
[357088759,1743707169289,-1000.0,0.00043835,120]
[357088760,1743707169314,-153.28080704,0.00043835,120]
[357088761,1743707169340,-50000.0,0.00043836,30]
[357088762,1743707169365,-500.0,0.00043836,120]
[357088763,1743707169390,-500.0,0.00043836,120]
[357088764,1743707169416,-487.53538635,0.00043836,120]
[357088765,1743707169441,-1249.08554525,0.00043852,120]
[357088766,1743707169466,-1249.08554525,0.00043952,120]
[357088767,1743707169494,-10000.0,0.00044,44]
[357088768,1743707169520,-1973.35115686,0.00044,30]
[357088769,1743707169547,-200.0,0.00044,120]
[357088770,1743707169573,-1000.0,0.00044,120]
[357088771,1743707169599,-500.0,0.00044,120]
[357088772,1743707169626,-5000.0,0.00044,120]
[357088773,1743707169653,-4841.0,0.00044,120]
[357088774,1743707169680,-1249.08554525,0.00044052,120]
[357088775,1743707169708,-1249.08554525,0.00044152,120]
[357088776,1743707169736,-200.0,0.00044237,120]
[357088777,1743707169763,-1249.08554525,0.00044252,120]
[357088778,1743707169792,-153.0,0.00044262,30]
[357088779,1743707169818,-153.0,0.00044262,30]
[357088780,1743707169845,-438.5830046,0.00044262,30]
[357088781,1743707169872,-1249.08554525,0.00044352,120]
[357088782,1743707169897,-511429.0,0.0004444,30]
[357088783,1743707169925,-1249.08554525,0.00044452,120]
[357088784,1743707169950,-3071.09148406,0.000445,120]
[357088785,1743707169976,-1249.08554525,0.00044552,120]
[357088786,1743707170002,-1249.08554525,0.00044652,120]
[357088787,1743707170029,-2027.12,0.00044718,30]
[357088788,1743707170054,-1249.08554525,0.00044752,120]
[357088789,1743707170080,-4824.0691389,0.0004484,120]
[357088790,1743707170106,-1249.08554525,0.00044852,120]
[357088791,1743707170132,-30000.0,0.0004489,50]
[357088792,1743707170159,-200.0,0.00044912,120]
[357088793,1743707170185,-1249.08554525,0.00044952,120]
[357088794,1743707170210,-750.0,0.00044999,120]
[357088795,1743707170239,-2014.0,0.00045,120]
[357088796,1743707170264,-532.01452,0.00045,120]
[357088797,1743707170292,-30000.0,0.00045,120]
[357088798,1743707170317,-506.59626165,0.00045,120]
[357088799,1743707170343,-151.0,0.00045,120]
[357088800,1743707170368,-2000.0,0.00045,120]
[357088801,1743707170393,-3000.0,0.00045,120]
[357088802,1743707170419,-10519.51397282,0.00045,120]
[357088803,1743707170443,-20000.0,0.00045,30]
[357088804,1743707170469,-152.25013788,0.00045,120]
[357088805,1743707170495,-235.43,0.00045,120]
[357088806,1743707170521,-500.0,0.00045,30]
[357088807,1743707170546,-7000.0,0.00045,30]
[357088808,1743707170571,-4217.0,0.00045,120]
[357088809,1743707170596,-209.81,0.00045,120]
[357088810,1743707170621,-159.5628267,0.00045,120]
[357088811,1743707170645,-500.0,0.00045,120]
[357088812,1743707170670,-8000.0,0.00045,120]
[357088813,1743707170695,-6342.5,0.00045,120]
[357088814,1743707170721,-5381.03497044,0.00045,120]
[357088815,1743707170745,-214.99760879,0.00045,120]
[357088816,1743707170771,-590.14798954,0.00045,120]
[357088817,1743707170795,-232.46,0.00045,120]
[357088818,1743707170820,-6824.97826747,0.00045,60]
[357088819,1743707170845,-191.81979165,0.00045,120]
[357088820,1743707170869,-34206.19661565,0.00045,120]
[357088821,1743707170894,-151.0,0.00045,120]
[357088822,1743707170918,-50000.0,0.00045,30]
[357088823,1743707171058,-50000.0,0.00045,30]
[357088824,1743707171084,-4999.999999,0.00045,90]
[357088825,1743707171109,-12200.0,0.00045,30]
[357088826,1743707171135,-30404.74272571,0.00045,120]
[357088827,1743707171160,-1249.08554525,0.00045052,120]
[357088828,1743707171185,-20000.0,0.0004512,40]
[357088829,1743707171210,-1249.08554525,0.00045152,120]
[357088830,1743707171237,-5564.25,0.00045205,120]
[357088831,1743707171264,-1249.08554525,0.00045252,120]
[357088832,1743707171290,-5045.08946136,0.000453,120]
[357088833,1743707171318,-1249.08554525,0.00045352,120]
[357088834,1743707171345,-1249.08554525,0.00045452,120]
[357088835,1743707171371,-5564.25,0.00045479,120]
[357088836,1743707171399,-100000.0,0.000455,120]
[357088837,1743707171426,-3705.72,0.000455,120]
[357088838,1743707171452,-1249.08554525,0.00045552,120]
[357088839,1743707171479,-100000.0,0.000456,120]
[357088840,1743707171505,-20000.0,0.0004563,40]
[357088841,1743707171532,-1249.08554525,0.00045652,120]
[357088842,1743707171559,-200.0,0.00045661,120]
[357088843,1743707171585,-365.63980848,0.00045698,120]
[357088844,1743707171611,-100000.0,0.000457,120]
[357088845,1743707171637,-296256.44490834,0.000457,60]
[357088846,1743707171665,-1249.08554525,0.00045752,120]
[357088847,1743707171693,-5564.25,0.00045753,120]
[357088848,1743707171719,-50000.0,0.0004578,40]
[357088849,1743707171747,-200.0,0.00045792,120]
[357088850,1743707171775,-1249.08554525,0.00045852,120]
[357088851,1743707171801,-3859.40967461,0.0004588,30]
[357088852,1743707171826,-336.92969717,0.000459,120]
[357088853,1743707171852,-166.87501536,0.00045914,120]
[357088854,1743707171878,-1249.08554525,0.00045952,120]
[357088855,1743707171904,-15304.53995463,0.00045996,30]
[357088856,1743707171931,-1000.0,0.00045999,120]
[357088857,1743707171957,-224.78583344,0.00045999,60]
[357088858,1743707171986,-10000.0,0.00046,46]
[357088859,1743707172011,-702.1447686,0.00046,120]
[357088860,1743707172040,-200.0,0.00046,120]
[357088861,1743707172065,-1175.79734191,0.00046,120]
[357088862,1743707172091,-300.0,0.00046,30]
[357088863,1743707172117,-40856.95,0.00046,30]
[357088864,1743707172142,-345.8200968,0.00046,120]
[357088865,1743707172168,-2672.38241682,0.00046,120]
[357088866,1743707172193,-500.0,0.00046,120]
[357088867,1743707172218,-6000.0,0.00046,120]
[357088868,1743707172247,-2259.0,0.00046,120]
[357088869,1743707172276,-3883.9217266,0.00046,120]
[357088870,1743707172303,-4841.0,0.00046,120]
[357088871,1743707172332,-5564.25,0.00046027,120]
[357088872,1743707172361,-1249.08554525,0.00046052,120]
[357088873,1743707172388,-40000.0,0.0004612,40]
[357088874,1743707172415,-1249.08554525,0.00046152,120]
[357088875,1743707172441,-20000.0,0.0004623,40]
[357088876,1743707172467,-1249.08554525,0.00046252,120]
[357088877,1743707172494,-5564.25,0.00046301,120]
[357088878,1743707172521,-151.0,0.00046301,120]
[357088879,1743707172548,-299.571861,0.00046301,120]
[357088880,1743707172574,-1249.08554525,0.00046352,120]
[357088881,1743707172599,-7220.9686521,0.000464,120]
[357088882,1743707172627,-1249.08554525,0.00046452,120]
[357088883,1743707172660,-150.02,0.00046497,30]
[357088884,1743707172687,-150.02,0.00046497,30]
[357088885,1743707172714,-199.96,0.00046497,30]
[357088886,1743707172743,-500.0,0.00046497,30]
[357088887,1743707172770,-500.0,0.00046497,30]
[357088888,1743707172798,-500.0,0.00046497,30]
[357088889,1743707172825,-500.0,0.00046497,30]
[357088890,1743707172852,-500.0,0.00046497,30]
[357088891,1743707172879,-500.0,0.00046497,30]
[357088892,1743707172906,-500.0,0.00046497,30]
[357088893,1743707172933,-1249.08554525,0.00046552,120]
[357088894,1743707172960,-94649.68678132,0.00046574,85]
[357088895,1743707172987,-5564.25,0.00046575,120]
[357088896,1743707173013,-533.42083567,0.00046575,120]
[357088897,1743707173041,-20000.0,0.00046621,30]
[357088898,1743707173069,-200.0,0.00046633,120]
[357088899,1743707173097,-1249.08554525,0.00046652,120]
[357088900,1743707173124,-84305.46917021,0.00046712,120]
[357088901,1743707173150,-1249.08554525,0.00046752,120]
[357088902,1743707173176,-20000.0,0.0004678,40]
[357088903,1743707173202,-20000.0,0.0004679,40]
[357088904,1743707173231,-20000.0,0.0004679,50]
[357088905,1743707173258,-43661.86190736,0.00046826,120]
[357088906,1743707173451,-500.0,0.00012842,2]
[357088907,1743707181859,-151.0,0.00012842,2]
[357088908,1743707184428,-900.0,0.00041565,60]
[357088909,1743707184455,-900.0,0.00042113,60]
[357088910,1743707184480,-900.0,0.00042661,60]
[357088911,1743707184506,-900.0,0.00043209,60]
[357088912,1743707184533,-153.0,0.00043714,30]
[357088913,1743707184558,-900.0,0.00043757,60]
[357088914,1743707184584,-900.0,0.00044305,120]
[357088915,1743707184608,-900.0,0.00044853,120]
[357088916,1743707184635,-900.0,0.00045401,120]
[357088917,1743707184661,-900.0,0.00045949,120]
[357088918,1743707184691,-843.0,0.00046497,30]
[357088919,1743707184717,-843.0,0.00046497,30]
[357088920,1743707184742,-843.0,0.00046497,30]
[357088921,1743707184768,-843.0,0.00046497,30]
[357088922,1743707184795,-843.0,0.00046497,30]
[357088923,1743707184820,-843.0,0.00046497,30]
[357088924,1743707184846,-843.0,0.00046497,30]
[357088925,1743707184872,-843.0,0.00046497,30]
[357088926,1743707184897,-843.0,0.00046497,30]
[357088927,1743707184922,-843.0,0.00046497,30]
[357088928,1743707184948,-843.0,0.00046497,30]
[357088929,1743707184973,-843.0,0.00046497,30]
[357088930,1743707184999,-843.0,0.00046497,30]
[357088931,1743707185032,-843.0,0.00046497,30]
[357088932,1743707185066,-843.0,0.00046497,30]
[357088933,1743707185096,-843.0,0.00046497,30]
[357088934,1743707185125,-843.0,0.00046497,30]
[357088935,1743707185156,-843.0,0.00046497,30]
[357088936,1743707185185,-843.0,0.00046497,30]
[357088937,1743707185217,-843.0,0.00046497,30]
[357088938,1743707185252,-150.02,0.00046497,30]
[357088939,1743707185283,-150.02,0.00046497,30]
[357088940,1743707185314,-150.72240137,0.00046497,30]
[357088941,1743707185345,-7105.92809264,0.00046826,120]
[357088942,1743707185375,-78228.56708625,0.0004684,120]
[357088943,1743707185405,-200.0,0.00046848,120]
[357088944,1743707185437,-5564.25,0.00046849,120]
[357088945,1743707185468,-1249.08554525,0.00046852,120]
[357088946,1743707185499,-306.33232921,0.00046915,120]
[357088947,1743707185527,-1249.08554525,0.00046952,120]
[357088948,1743707185557,-306.33232921,0.00046959,120]
[357088949,1743707185588,-306.33232921,0.00046971,120]
[357088950,1743707185618,-306.33232921,0.00046993,120]
[357088951,1743707185649,-200.0,0.00046995,120]
[357088952,1743707185682,-3304.55916388,0.00046998,30]
[357088953,1743707185713,-1000.0,0.00046999,120]
[357088954,1743707185744,-1226.5972747,0.00047,120]
[357088955,1743707185771,-3308.0136259,0.00047,120]
[357088956,1743707185799,-166.57577878,0.00047,120]
[357088957,1743707185828,-920.79708126,0.00047,120]
[357088958,1743707185860,-830.71554434,0.00047,120]
[357088959,1743707186176,-15075.016381,0.00047,30]
[357088960,1743707186566,-1249.08554525,0.00047052,120]
[357088961,1743707186916,-5564.25,0.00047123,120]
[357088962,1743707187155,-1249.08554525,0.00047152,120]
[357088963,1743707187188,-200.0,0.00047218,120]
[357088964,1743707187217,-792804.0,0.0004722,30]
[357088965,1743707187247,-1045941.0,0.0004722,30]
[357088966,1743707187276,-1249.08554525,0.00047252,120]
[357088967,1743707187307,-1249.08554525,0.00047352,120]
[357088968,1743707187338,-20000.0,0.0004736,40]
[357088969,1743707187368,-5564.25,0.00047397,120]
[357088970,1743707187397,-1249.08554525,0.00047452,120]
[357088971,1743707187428,-1249.08554525,0.00047552,120]
[357088972,1743707187458,-178.14,0.00047625,81]
[357088973,1743707187487,-1249.08554525,0.00047652,120]
[357088974,1743707187518,-5564.25,0.00047671,120]
[357088975,1743707187547,-1249.08554525,0.00047752,120]
[357088976,1743707187576,-2000.0,0.000478,120]
[357088977,1743707187604,-2588.998,0.000478,60]
[357088978,1743707187634,-815.8310829,0.000478,120]
[357088979,1743707187664,-1249.08554525,0.00047852,120]
[357088980,1743707187696,-27000.0,0.0004786,50]
[357088981,1743707187725,-34548.21281375,0.000479,120]
[357088982,1743707187754,-10032.41631961,0.000479,120]
[357088983,1743707187785,-1945.5625584,0.000479,120]
[357088984,1743707187813,-3848.03472439,0.000479,120]
[357088985,1743707187844,-5564.25,0.00047945,120]
[357088986,1743707187874,-1249.08554525,0.00047952,120]
[357088987,1743707187903,-1000.0,0.00047999,120]
[357088988,1743707187935,-10000.0,0.00048,48]
[357088989,1743707187965,-200.0,0.00048,120]
[357088990,1743707187993,-30000.0,0.00048,120]
[357088991,1743707188019,-519.86143439,0.00048,120]
[357088992,1743707188048,-8190.0,0.00048,30]
[357088993,1743707188076,-4841.0,0.00048,120]
[357088994,1743707188104,-13821.38,0.00048,30]
[357088995,1743707188132,-1249.08554525,0.00048052,120]
[357088996,1743707188159,-200.0,0.00048056,120]
[357088997,1743707188186,-200.0,0.00048066,120]
[357088998,1743707188443,-1249.08554525,0.00048152,120]
[357088999,1743707188471,-50000.0,0.00048179,120]
[357089000,1743707188498,-30000.0,0.0004819,50]
[357089001,1743707188525,-200.0,0.00048196,120]
[357089002,1743707188556,-5564.25,0.00048219,120]
[357089003,1743707188586,-1249.08554525,0.00048252,120]
[357089004,1743707188613,-1249.08554525,0.00048352,120]
[357089005,1743707188640,-30000.0,0.0004836,50]
[357089006,1743707188667,-2630.34929369,0.00048398,120]
[357089007,1743707188696,-1249.08554525,0.00048452,120]
[357089008,1743707188724,-5564.25,0.00048493,120]
[357089009,1743707188750,-500.0,0.00048493,31]
[357089010,1743707188776,-5015.70918428,0.000485,120]
[357089011,1743707188808,-1249.08554525,0.00048552,120]
[357089012,1743707188836,-1249.08554525,0.00048652,120]
[357089013,1743707188864,-1249.08554525,0.00048752,120]
[357089014,1743707188891,-5564.25,0.00048767,120]
[357089015,1743707188917,-500.0,0.00048767,33]
[357089016,1743707188945,-858.83878391,0.000488,120]
[357089017,1743707188971,-397.515108,0.000488,120]
[357089018,1743707188999,-6035.52984911,0.000488,120]
[357089019,1743707189027,-690.60102988,0.000488,120]
[357089020,1743707189057,-1249.08554525,0.00048852,120]
[357089021,1743707189084,-1249.08554525,0.00048952,120]
[357089022,1743707189111,-1000.0,0.00048999,120]
[357089023,1743707189138,-321.0,0.00049,120]
[357089024,1743707189166,-751.3,0.00049,120]
[357089025,1743707189192,-809.0,0.00049,120]
[357089026,1743707189219,-5564.25,0.00049041,120]
[357089027,1743707189250,-500.0,0.00049041,35]
[357089028,1743707189278,-1249.08554525,0.00049052,120]
[357089029,1743707189307,-1249.08554525,0.00049152,120]
[357089030,1743707189336,-1249.08554525,0.00049252,120]
[357089031,1743707189364,-5564.25,0.00049315,120]
[357089032,1743707189391,-500.0,0.00049315,37]
[357089033,1743707189421,-1249.08554525,0.00049352,120]
[357089034,1743707189450,-1249.08554525,0.00049452,120]
[357089035,1743707189479,-1249.08554525,0.00049552,120]
[357089036,1743707189507,-5564.25,0.00049589,120]
[357089037,1743707189535,-352.60877693,0.00049589,39]
[357089038,1743707189563,-1249.08554525,0.00049652,120]
[357089039,1743707189589,-1249.08554525,0.00049752,120]
[357089040,1743707189615,-1249.08554525,0.00049852,120]
[357089041,1743707189641,-5564.25,0.00049863,120]
[357089042,1743707189668,-1249.08554525,0.00049952,120]
[357089043,1743707189695,-10000.0,0.0005,50]
[357089044,1743707189722,-200.0,0.0005,120]
[357089045,1743707189747,-535.5122602,0.0005,120]
[357089046,1743707189772,-223.16565879,0.0005,90]
[357089047,1743707189798,-174.45500938,0.0005,120]
[357089048,1743707189823,-500.0,0.0005,120]
[357089049,1743707189848,-4165.44096668,0.0005,120]
[357089050,1743707189873,-10000.0,0.0005,120]
[357089051,1743707189898,-180.0,0.0005,60]
[357089052,1743707189923,-4742.89097489,0.0005,120]
[357089053,1743707189947,-3663.68704762,0.0005,60]
[357089054,1743707189973,-202.1,0.0005,120]
[357089055,1743707189998,-1631.71,0.0005,120]
[357089056,1743707190023,-10000.0,0.0005,30]
[357089057,1743707190050,-4841.0,0.0005,120]
[357089058,1743707190074,-500.0,0.0005,120]
[357089059,1743707190111,-500.0,0.0005,120]
[357089060,1743707190139,-77302.027633,0.0005,30]
[357089061,1743707190165,-1249.08554525,0.00050052,120]
[357089062,1743707190192,-5564.25,0.00050136,120]
[357089063,1743707190218,-1249.08554525,0.00050152,120]
[357089064,1743707190247,-1249.08554525,0.00050252,120]
[357089065,1743707190274,-1249.08554525,0.00050352,120]
[357089066,1743707190303,-5564.25,0.0005041,120]
[357089067,1743707190330,-1249.08554525,0.00050452,120]
[357089068,1743707190356,-1249.08554525,0.00050552,120]
[357089069,1743707190381,-1249.08554525,0.00050652,120]
[357089070,1743707190409,-5564.25,0.00050684,120]
[357089071,1743707190436,-1249.08554525,0.00050752,120]
[357089072,1743707190463,-1249.08554525,0.00050852,120]
[357089073,1743707190490,-1249.08554525,0.00050952,120]
[357089074,1743707190517,-5564.25,0.00050958,120]
[357089075,1743707190543,-3053.01417355,0.00051,60]
[357089076,1743707190568,-3000.0,0.00051,85]
[357089077,1743707190594,-3000.0,0.0005101,85]
[357089078,1743707190620,-3000.0,0.0005102,85]
[357089079,1743707190645,-3000.0,0.0005103,85]
[357089080,1743707190670,-3000.0,0.0005104,85]
[357089081,1743707190696,-3000.0,0.0005105,85]
[357089082,1743707190721,-1249.08554525,0.00051052,120]
[357089083,1743707190746,-3000.0,0.0005106,85]
[357089084,1743707190771,-5923.320426,0.0005107,85]
[357089085,1743707190798,-1249.08554525,0.00051152,120]
[357089086,1743707190824,-5564.25,0.00051232,120]
[357089087,1743707190850,-1249.08554525,0.00051252,120]
[357089088,1743707190876,-1249.08554525,0.00051352,120]
[357089089,1743707190908,-1249.08554525,0.00051452,120]
[357089090,1743707190936,-5564.29253251,0.00051506,120]
[357089091,1743707190963,-1249.08554525,0.00051552,120]
[357089092,1743707190989,-1249.08554525,0.00051652,120]
[357089093,1743707191017,-1249.08554525,0.00051752,120]
[357089094,1743707191044,-1249.08554525,0.00051852,120]
[357089095,1743707191070,-401.0,0.00051882,120]
[357089096,1743707191096,-1249.08554525,0.00051952,120]
[357089097,1743707191124,-200.0,0.00052,120]
[357089098,1743707191293,-1305.37,0.00052,30]
[357089099,1743707191321,-4841.0,0.00052,120]
[357089100,1743707191349,-1249.08554525,0.00052052,120]
[357089101,1743707191377,-1249.08554525,0.00052152,120]
[357089102,1743707191403,-253.673,0.00052219,120]
[357089103,1743707191432,-1249.08,0.00052252,120]
[357089104,1743707191458,-200.0,0.00054,120]
[357089105,1743707191484,-8277.4005974,0.00054,120]
[357089106,1743707191510,-4841.0,0.00054,120]
[357089107,1743707191537,-8930.0,0.000545,120]
[357089108,1743707191563,-1008.69447429,0.00054794,90]
[357089109,1743707191590,-153.00282013,0.00054794,120]
[357089110,1743707191618,-464.25088063,0.00054794,120]
[357089111,1743707191720,151.94909407,0.00046497,30]
[357089112,1743707191767,900.0,0.00046497,120]
[357089113,1743707191813,900.0,0.00047045,120]
[357089114,1743707191845,900.0,0.00047593,120]
[357089115,1743707191881,900.0,0.00048141,120]
[357089116,1743707192689,900.0,0.00048689,120]
[357089117,1743707194440,400.0,0.00049237,120]
[357089118,1743707195627,151.0,0.00054793,120]
[357089119,1743707197600,150.02,0.00046497,30]
[357089120,1743707197809,150.02,0.00046497,30]
[357089121,1743707197980,201.77699333,0.00046497,30]
[357089122,1743707200373,500.0,0.00046497,30]
[357089123,1743707200592,500.0,0.00046497,30]
[357089124,1743707200903,500.0,0.00046497,30]
[357089125,1743707202048,-25.4117653,0.00012842,2]
[357089126,1743707202074,-205.1914997,0.0001336,2]
[357089127,1743707202098,-300.0,0.00013494,2]
[357089128,1743707202122,-30.18577943,0.00013495,2]
[357089129,1743707209659,-300.0,0.0001336,2]
[357089131,1743707213729,-182.80942083,0.0001336,2]
[357089132,1743707215675,-300.0,0.0001336,2]
[357089134,1743707223651,-300.0,0.0001336,2]
[357089135,1743707229189,-200.0,0.0001336,2]
[357089148,1743707232107,-192.1327515,0.0001336,2]
[357089149,1743707235209,-198.96397308,0.0001336,2]
[357089151,1743707244871,-176.3439,0.0001281,2]
[357089153,1743707277821,-2775.8675565,0.0001281,2]
[357089154,1743707277848,-158.9238298,0.0001336,2]
[357089155,1743707277872,-300.0,0.00013494,2]
[357089156,1743707277896,-3304.2002137,0.00013495,2]
[357089158,1743707311279,-150.0,0.00012682,2]
[357089189,1743707432382,-1309.15332083,0.00012682,2]
[357089191,1743707432395,-250.0,0.00012997,2]
[357089192,1743707432405,-7247.86535357,0.00013495,2]
[357089193,1743707432415,-300.0,0.00013697,2]
[357089194,1743707432425,-500.0,0.00013698,2]
[357089196,1743707432658,-500.0,0.00013698,2]
[357089199,1743707432674,-500.0,0.00013698,2]
[357089201,1743707432684,-500.0,0.00013698,2]
[357089203,1743707432694,-500.0,0.00013698,2]
[357089205,1743707432703,-831.63,0.00013698,2]
[357089207,1743707432712,-500.0,0.00013698,2]
[357089208,1743707432726,-500.0,0.00013698,2]
[357089211,1743707432736,-307.54672702,0.00013698,2]
[357089213,1743707432746,-605.48,0.00013698,2]
[357089214,1743707432756,-585.92374889,0.00013698,2]
[357089215,1743707432765,-500.0,0.00013698,2]
[357089216,1743707432775,-500.0,0.00013698,2]
[357089217,1743707432784,-11624.93084969,0.00013698,2]
[357089218,1743707432801,-38375.06915031,0.00013698,2]
[357089219,1743707432810,-1408.31358132,0.00013872,2]
[357089220,1743707432820,-500.0,0.00013972,2]
[357089221,1743707432830,-500.0,0.00013972,2]
[357089222,1743707432839,-500.0,0.00013972,2]
[357089223,1743707432849,-486.42370464,0.00013972,2]
[357089224,1743707432859,-500.0,0.00013972,2]
[357089225,1743707432869,-831.63,0.00013972,2]
[357089226,1743707432878,-500.0,0.00013972,2]
[357089227,1743707432888,-500.0,0.00013972,2]
[357089228,1743707432898,-605.48,0.00013972,2]
[357089229,1743707432907,-500.0,0.00013972,2]
[357089230,1743707432917,-340.94133739,0.00014,2]
[357089231,1743707432928,-500.0,0.00014246,2]
[357089232,1743707432938,-500.0,0.00014246,2]
[357089233,1743707432947,-500.0,0.00014246,2]
[357089234,1743707432957,-500.0,0.00014246,2]
[357089235,1743707432966,-831.63,0.00014246,2]
[357089236,1743707432977,-500.0,0.00014246,2]
[357089237,1743707432987,-500.0,0.00014246,2]